bitfinex-derivatives/quotes_ETHF0:USTF0_20250709
["timestamp","ask_amount","ask_price","bid_price","bid_amount"]
[1752063121124,0.75664,2643.0,2642.9,3.2078]
[1752063121422,0.75656,2643.2,2642.9,3.2078]
[1752063121622,0.75654,2643.3,2642.9,3.2078]
[1752063121822,0.75654,2643.3,2643.2,3.2078]
[1752063122425,0.75663,2643.0,2642.9,3.2078]
[1752063122723,0.75661,2643.0,2642.9,3.2078]
[1752063122925,40.8,2643.6,2642.9,3.2078]
[1752063123127,1.89098,2643.8,2643.4,3.2078]
[1752063123128,0.75647,2643.5,2643.4,3.2078]
[1752063123324,0.7564,2643.8,2643.4,3.2078]
[1752063123628,0.7564,2643.8,2643.3,2.34343658]
[1752063123629,0.75638,2643.8,2643.7,3.2078]
[1752063123930,1.8906,2644.3,2643.7,3.2078]
[1752063124232,0.7563,2644.1,2644.0,3.2078]
[1752063124729,0.75638,2643.8,2643.7,3.2078]
[1752063124929,3.19673,2644.4,2643.7,3.2078]
[1752063125131,0.7563,2644.1,2644.0,3.2078]
[1752063125328,1.89039,2644.6,2644.0,3.2078]
[1752063125329,3.2078,2645.3,2644.0,60.06723658]
[1752063125531,0.75615,2644.6,2644.5,3.2078]
[1752063126624,0.75615,2644.6,2643.0,1.89153]
[1752063126625,0.75632,2644.0,2643.9,3.2078]
[1752063126828,0.75641,2643.7,2643.6,3.2078]
[1752063127019,1.89075,2644.1,2643.6,3.2078]
[1752063127226,3.2078,2645.1,2643.9,3.2078]
[1752063127427,0.75624,2644.3,2644.2,3.2078]
[1752063128126,8.2078,2644.3,2643.4,3.2078]
[1752063128426,58.28675,2644.7,2644.2,3.2078]
[1752063128427,0.75614,2644.7,2644.2,3.2078]
[1752063128627,1.2841,2644.9,2644.2,3.2078]
[1752063128830,0.75614,2644.7,2644.2,3.2078]
[1752063129028,0.75614,2644.7,2644.2,4.5505]
[1752063129333,2.04019,2644.9,2644.5,3.2078]
[1752063129524,55.1732,2645.6,2644.8,3.2078]
[1752063129525,3.875,2645.6,2644.8,3.2078]
[1752063129722,40.8,2645.5,2644.8,3.2078]
[1752063129929,0.75596,2645.3,2644.9,1.3427]
[1752063130123,0.6672,2645.6,2644.8,3.2078]
[1752063130429,0.6672,2645.6,2645.1,3.2078]
[1752063130621,0.75598,2645.2,2645.1,3.2078]
[1752063130823,0.75606,2645.0,2644.7,2.34343658]
[1752063131026,0.75603,2645.1,2644.8,1.3404]
[1752063131225,3.2078,2645.5,2644.8,1.3404]
[1752063131431,3.2078,2645.2,2644.6,3.2078]
[1752063131725,0.75623,2644.4,2644.2,3.2078]
[1752063131930,1.88955,2645.8,2644.3,2.34343658]
[1752063132124,3.2078,2645.6,2644.9,3.2078]
[1752063132327,0.75598,2645.2,2645.0,1.3404]
[1752063132527,3.2078,2645.6,2645.0,1.3404]
[1752063132727,0.6493,2645.8,2645.2,3.2078]
[1752063133430,0.6493,2645.8,2645.3,1.3404]
[1752063133630,0.75592,2645.4,2645.3,1.3404]
[1752063134433,0.75595,2645.3,2645.2,3.2078]
[1752063134631,0.756,2645.2,2645.0,1.3644]
[1752063134830,0.75601,2645.1,2645.0,1.3644]
[1752063135030,0.18531997,2645.7,2645.0,1.3644]
[1752063135333,0.18531997,2645.7,2645.6,3.2078]
[1752063135530,1.88883,2646.8,2645.6,5.55123658]
[1752063135725,0.6597,2646.9,2646.1,3.2078]
[1752063135926,42.07,2646.8,2645.8,3.2078]
[1752063136134,0.75563,2646.5,2645.8,3.2078]
[1752063136434,42.07,2646.8,2646.1,3.2078]
[1752063136629,0.75567,2646.3,2646.2,1.3644]
[1752063136932,3.2078,2646.6,2646.2,1.3644]
[1752063137234,0.75578,2645.9,2645.8,3.2078]
[1752063137434,0.75582,2645.8,2645.5,3.2078]
[1752063137629,0.75578,2645.9,2645.6,1.2921]
[1752063137834,0.75582,2645.8,2645.6,1.2921]
[1752063138134,5.09677,2646.6,2645.6,1.2921]
[1752063138330,5.09681,2646.6,2645.6,1.2921]
[1752063138534,0.75584,2645.7,2645.6,1.2921]
[1752063138729,0.75586,2645.6,2645.5,3.2078]
[1752063138936,0.75595,2645.3,2645.2,3.2078]
[1752063139333,1.88961,2645.7,2645.0,1.2921]
[1752063139334,0.75601,2645.1,2645.0,1.2921]
[1752063140530,0.75615,2644.6,2644.5,3.2078]
[1752063140737,5.0978,2645.2,2644.0,3.98835884]
[1752063140738,0.75618,2644.5,2644.4,1.2846]
[1752063141235,3.2078,2644.9,2644.4,1.2846]
[1752063141431,3.2078,2647.0,2645.0,3.2078]
[1752063141632,5.09669,2646.7,2645.8,5.55123658]
[1752063141938,3.2078,2646.7,2645.9,1.2846]
[1752063142133,0.7557,2646.2,2646.0,0.00567752]
[1752063142339,0.75568,2646.3,2646.0,0.00567752]
[1752063142538,40.8,2646.8,2646.0,0.00567752]
[1752063142742,0.75565,2646.4,2646.1,3.2078]
[1752063142941,0.75562,2646.5,2646.2,1.2846]
[1752063143142,3.2078,2647.3,2646.4,3.2078]
[1752063143334,0.75545,2647.1,2646.5,2.12909]
[1752063143540,0.75547,2647.0,2646.5,2.12909]
[1752063143740,3.2078,2647.3,2646.7,3.2078]
[1752063144038,3.2078,2647.3,2646.8,1.3735]
[1752063144239,3.9632,2647.3,2646.8,1.3735]
[1752063144436,3.96319,2647.3,2646.8,1.3735]
[1752063144634,0.6605,2647.5,2646.8,1.3735]
[1752063144839,0.75545,2647.1,2646.8,1.3735]
[1752063145038,1.9864,2647.5,2646.8,1.3735]
[1752063145445,5.1942,2647.5,2646.8,1.3735]
[1752063145739,0.75552,2646.8,2646.7,3.2078]
[1752063146245,1.88837,2647.4,2646.7,3.2078]
[1752063146445,0.7554,2647.2,2647.1,3.2078]
[1752063146842,0.75549,2646.9,2646.8,3.2078]
[1752063147047,3.2078,2648.2,2646.9,1.3619]
[1752063147238,0.7554,2647.2,2647.1,3.2078]
[1752063147647,0.75549,2646.9,2646.8,3.2078]
[1752063148540,0.75558,2646.6,2646.5,3.2078]
[1752063148739,0.75566,2646.3,2646.2,3.2078]
[1752063150048,0.75586,2645.6,2645.5,4.85590436]
[1752063150343,0.75586,2645.6,2645.5,5.41079356]
[1752063150547,3.2078,2646.5,2645.5,5.41079356]
[1752063150741,3.2078,2646.5,2646.1,3.31424863]
[1752063150944,3.2078,2647.8,2646.3,3.2078]
[1752063151143,1.88823,2647.6,2646.9,3.2078]
[1752063151349,0.75542,2647.2,2647.0,1.2959]
[1752063151547,1.88823,2647.6,2646.9,3.2078]
[1752063151548,1.8883,2647.5,2646.9,3.2078]
[1752063151749,0.75546,2647.1,2646.9,3.2078]
[1752063151944,0.75542,2647.2,2646.9,3.2078]
[1752063152142,0.75535,2647.4,2646.9,3.2078]
[1752063152342,0.75538,2647.3,2646.9,3.96328]
[1752063152553,0.75538,2647.3,2646.9,3.2078]
[1752063152750,1.3326,2647.5,2646.9,3.2078]
[1752063152949,3.22096,2647.5,2646.9,3.2078]
[1752063153149,0.75545,2647.1,2646.9,3.2078]
[1752063153450,0.75542,2647.2,2646.9,3.2078]
[1752063154247,0.75543,2647.1,2646.9,3.2078]
[1752063154650,1.3326,2647.5,2646.9,3.2078]
[1752063154651,0.75546,2647.0,2646.9,3.2078]
[1752063155149,0.75557,2646.6,2646.5,4.85590436]
[1752063155452,0.75557,2646.6,2646.5,4.90498232]
[1752063155656,0.75557,2646.6,2646.5,6.5586547]
[1752063156246,0.75557,2646.6,2646.5,4.90498232]
[1752063156751,5.09547,2648.4,2646.5,9.90498232]
[1752063156956,3.2078,2647.9,2647.4,3.2078]
[1752063157155,0.75532,2647.5,2647.4,3.2078]
[1752063157850,0.75532,2647.5,2646.8,3.2078]
[1752063157851,1.88837,2647.4,2646.8,3.2078]
[1752063158048,0.75548,2647.0,2646.9,1.6989927]
[1752063158249,1.2613,2647.4,2646.9,1.6989927]
[1752063158453,3.8944,2647.7,2647.1,3.2078]
[1752063158651,0.7554,2647.2,2647.1,3.2078]
[1752063159450,0.7554,2647.2,2647.1,4.90928838]
[1752063159652,0.7554,2647.2,2647.1,3.2078]
[1752063160553,0.7554,2647.2,2646.8,3.2078]
[1752063160554,0.75549,2646.9,2646.8,3.2078]
[1752063162754,0.18531997,2649.0,2647.8,0.75522]
[1752063162953,0.18531997,2649.0,2646.8,13.2258272]
[1752063162954,1.88738,2648.8,2648.2,3.2078]
[1752063163160,60.53,2648.8,2648.2,3.2078]
[1752063163354,0.755,2648.6,2648.5,3.2078]
[1752063163663,60.527,2648.8,2648.5,3.2078]
[1752063163953,0.755,2648.6,2648.5,3.2078]
[1752063164150,0.75499,2648.7,2648.5,3.2078]
[1752063164652,0.18531997,2649.0,2648.5,3.2078]
[1752063164851,0.18531997,2649.0,2648.9,3.2078]
[1752063165562,2.07261997,2649.0,2648.4,3.2078]
[1752063165756,0.75498,2648.7,2648.4,3.2078]
[1752063165956,0.75498,2648.7,2648.4,4.5478]
[1752063166151,0.18531997,2649.0,2648.4,4.5478]
[1752063166355,0.94020997,2649.0,2648.9,3.2078]
[1752063166556,0.75498,2648.7,2648.6,3.2078]
[1752063168065,0.75497,2648.8,2648.6,3.2078]
[1752063168261,0.18531997,2649.0,2648.6,3.2078]
[1752063168463,0.94022997,2649.0,2648.9,3.2078]
[1752063169254,0.94022997,2649.0,2648.6,3.2078]
[1752063169255,0.75498,2648.7,2648.6,3.2078]
[1752063169963,0.75506,2648.4,2648.3,3.2078]
[1752063170954,0.75505,2648.5,2648.3,4.91022366]
[1752063171162,0.75505,2648.5,2648.4,1.70242366]
[1752063171564,0.75506,2648.4,2648.3,3.2078]
[1752063171758,0.75506,2648.4,2648.3,3.708731]
[1752063172259,3.2078,2649.1,2648.3,3.708731]
[1752063172260,4.49103409,2650.2,2649.4,0.75476]
[1752063172564,0.75472,2649.6,2649.5,4.5376]
[1752063172764,1.88664,2649.9,2649.2,3.2078]
[1752063172969,1.1384,2650.1,2649.5,3.2078]
[1752063173162,0.75463,2649.9,2649.8,3.2078]
[1752063173468,1.25458,2650.1,2649.8,3.2078]
[1752063173669,0.5,2650.1,2649.9,1.2998]
[1752063174464,0.5,2650.1,2649.9,2.05443]
[1752063174675,0.5,2650.1,2649.9,1.2998]
[1752063174969,0.5,2650.1,2649.9,2.05441]
[1752063175159,0.5,2650.1,2649.9,1.2998]
[1752063175564,0.5,2650.1,2650.0,0.75461]
[1752063175864,0.5,2650.1,2649.9,6.2998]
[1752063176368,0.5,2650.1,2649.9,2.05442]
[1752063176563,0.75461,2650.0,2649.9,1.2998]
[1752063176766,0.75463,2649.9,2649.8,3.2078]
[1752063178566,3.2078,2650.8,2649.9,1.88659]
[1752063178869,5.09364,2651.0,2650.4,3.2078]
[1752063179072,0.75461,2650.1,2650.0,3.2078]
[1752063179461,1.88602,2650.7,2649.7,3.2078]
[1752063179462,1.3617,2650.6,2649.7,3.2078]
[1752063179766,5.09404,2650.4,2649.6,4.5469]
[1752063179974,0.75459,2650.1,2649.8,0.75466]
[1752063180173,1.3101,2650.3,2649.6,4.5469]
[1752063180369,1.3101,2650.3,2649.8,1.2733]
[1752063180572,1.3101,2650.3,2649.6,3.2078]
[1752063180767,3.2078,2651.0,2649.7,1.88674]
[1752063181066,0.7544,2650.8,2650.0,1.88652]
[1752063181369,0.7544,2650.8,2649.9,5.09436]
[1752063181370,1.9333,2650.9,2650.3,0.75451]
[1752063181570,1.9333,2650.9,2650.1,1.2733]
[1752063181571,1.9333,2650.9,2650.2,0.75453]
[1752063181767,0.75442,2650.7,2650.3,0.7545]
[1752063182162,1.9333,2650.9,2650.2,3.2078]
[1752063182361,0.75455,2650.2,2650.1,1.2733]
[1752063182562,3.96235,2650.2,2650.1,1.2733]
[1752063182770,1.88645,2650.1,2649.2,1.65808936]
[1752063182975,0.75462,2650.0,2649.6,0.75471]
[1752063183170,3.2078,2650.2,2649.5,1.335]
[1752063183566,5.0942,2650.2,2649.5,1.335]
[1752063183872,5.0942,2650.2,2649.6,0.75471]
[1752063183873,0.75462,2650.0,2649.6,0.75471]
[1752063184074,0.75462,2650.0,2649.7,0.75469]
[1752063184267,1.88645,2650.1,2649.5,1.335]
[1752063184476,0.7547,2649.7,2649.2,0.75482]
[1752063184772,0.7547,2649.7,2649.3,0.49933739]
[1752063185068,3.96247,2649.8,2649.4,0.49933739]
[1752063185263,3.2078,2649.8,2649.1,4.5428]
[1752063185462,0.75472,2649.7,2649.2,0.49950945]
[1752063185667,0.75472,2649.7,2649.3,1.25430945]
[1752063185863,0.75475,2649.5,2649.4,0.49950945]
[1752063190674,0.75492,2648.9,2648.8,3.2078]
[1752063190971,0.75487,2649.1,2648.8,1.6697465]
[1752063191175,0.75491,2649.0,2648.8,0.75493]
[1752063191367,0.75489,2649.0,2648.9,1.67139722]
[1752063191567,0.75489,2649.0,2648.9,2.91329722]
[1752063191771,3.2078,2649.3,2649.0,0.75489]
[1752063191970,3.2078,2649.6,2649.1,3.2078]
[1752063192166,3.2078,2649.6,2649.4,0.75476]
[1752063192366,3.2078,2649.6,2649.1,3.2078]
[1752063192565,0.75486,2649.2,2648.9,1.2419]
[1752063192768,0.75489,2649.0,2648.9,1.2419]
[1752063192972,0.75489,2649.0,2648.9,1.67453209]
[1752063193174,0.75495,2648.8,2648.7,0.03719644]
[1752063193369,0.75495,2648.8,2648.6,2.21078582]
[1752063193370,0.75498,2648.7,2648.6,2.21078582]
[1752063193573,0.755,2648.6,2648.5,3.55048582]
[1752063193774,3.2078,2648.8,2648.3,3.31617873]
[1752063193976,0.75509,2648.3,2648.2,3.54434693]
[1752063194278,0.75509,2648.3,2648.0,3.2078]
[1752063194279,0.75511,2648.3,2648.0,3.2078]
[1752063194480,0.75512,2648.2,2648.0,3.2078]
[1752063194776,0.7552,2647.9,2647.8,1.3397]
[1752063195081,1.88819,2647.7,2647.1,2.20887433]
[1752063195282,0.75526,2647.7,2647.6,2.20887433]
[1752063195483,44.76306,2647.7,2647.6,2.21454102]
[1752063195781,44.76306,2647.7,2647.6,0.00566669]
[1752063195782,49.76306,2647.7,2647.6,0.00566669]
[1752063197385,52.21497347,2647.7,2647.6,0.00566669]
[1752063198282,49.76306,2647.7,2647.6,0.00566669]
[1752063200786,79.76906,2647.7,2647.6,6.69e-06]
[1752063201177,82.22097347,2647.7,2647.6,6.69e-06]
[1752063201574,77.22097347,2647.7,2647.6,6.69e-06]
[1752063201980,74.76906,2647.7,2647.6,6.69e-06]
[1752063202181,52.21497347,2647.7,2647.6,6.69e-06]
[1752063202384,79.71206,2647.7,2647.6,6.69e-06]
[1752063202577,79.70606,2647.7,2647.6,6.69e-06]
[1752063202982,49.76306,2647.7,2647.6,6.69e-06]
[1752063203186,79.70706,2647.7,2647.6,6.69e-06]
[1752063203887,49.76306,2647.7,2647.6,6.69e-06]
[1752063204185,79.68406,2647.7,2647.6,6.69e-06]
[1752063204386,74.68406,2647.7,2647.6,6.69e-06]
[1752063204682,49.76306,2647.7,2647.6,6.69e-06]
[1752063204884,79.67506,2647.7,2647.6,6.69e-06]
[1752063205784,49.76306,2647.7,2647.6,6.69e-06]
[1752063205976,79.62806,2647.7,2647.6,6.69e-06]
[1752063206491,49.76306,2647.7,2647.6,6.69e-06]
[1752063206883,79.59106,2647.7,2647.6,6.69e-06]
[1752063207382,79.57106,2647.7,2647.6,6.69e-06]
[1752063208285,82.02297347,2647.7,2647.6,6.69e-06]
[1752063209482,0.75556,2646.7,2646.4,0.75562]
[1752063209688,59.484,2646.6,2646.5,0.7556]
[1752063209884,59.484,2646.6,2646.4,0.75561]
[1752063210284,59.484,2646.6,2646.4,0.75563]
[1752063210579,60.23958,2646.6,2646.3,3.96259631]
[1752063210983,59.484,2646.6,2646.3,3.20695631]
[1752063211184,0.75563,2646.4,2646.3,3.20695631]
[1752063212186,1.88918,2646.3,2646.0,3.2078]
[1752063212387,0.75572,2646.1,2646.0,3.2078]
[1752063213186,0.75583,2645.7,2645.6,3.2078]
[1752063213391,59.31566669,2646.3,2645.6,3.2078]
[1752063213691,0.75577,2646.0,2645.9,0.75577]
[1752063213986,0.75574,2646.1,2646.0,0.75575]
[1752063214181,0.75574,2646.1,2646.0,5.0]
[1752063214985,0.75574,2646.1,2646.0,5.75575]
[1752063215189,0.75574,2646.1,2646.0,5.0]
[1752063215389,1.89483669,2646.3,2645.8,2.45191347]
[1752063215390,0.75575,2646.0,2645.8,2.45191347]
[1752063215591,0.75573,2646.1,2646.0,0.75573]
[1752063215791,0.7557,2646.2,2646.1,0.7557]
[1752063216092,0.7557,2646.2,2646.1,7.45191347]
[1752063216690,0.7557,2646.2,2646.1,8.20763347]
[1752063216992,0.00566669,2646.3,2646.2,0.75569]
[1752063217192,0.76132669,2646.3,2646.2,5.75569]
[1752063217388,0.00566669,2646.3,2646.2,5.75569]
[1752063217588,1.89483669,2646.3,2645.8,3.2078]
[1752063217783,0.00566669,2646.3,2646.1,3.96351]
[1752063217987,0.76135669,2646.3,2646.2,0.75569]
[1752063218294,0.75562,2646.5,2646.4,0.75562]
[1752063218492,0.75562,2646.5,2646.4,3.2078]
[1752063218792,0.75566,2646.3,2646.2,0.75567]
[1752063219586,0.75565,2646.4,2646.1,2.45191347]
[1752063219785,1.88889,2646.7,2646.3,3.2078]
[1752063220185,1.88878,2646.9,2646.4,0.75561]
[1752063220389,1.8888,2646.8,2646.3,3.96344]
[1752063220586,0.75563,2646.4,2646.3,3.2078]
[1752063220783,0.75563,2646.4,2646.3,3.96346]
[1752063221188,0.75563,2646.5,2646.4,0.75562]
[1752063221797,0.75563,2646.4,2646.3,3.96345]
[1752063222094,0.75563,2646.5,2646.4,0.75563]
[1752063222296,0.75559,2646.6,2646.5,0.75558]
[1752063223498,3.2078,2647.0,2646.5,4.08154135]
[1752063223794,0.75552,2646.8,2646.7,0.75552]
[1752063223997,3.2078,2647.0,2646.9,0.75549]
[1752063224198,0.75555,2646.7,2646.6,3.2078]
[1752063224496,0.75555,2646.7,2646.6,4.83717354]
[1752063224696,3.2078,2647.0,2646.6,1.62937354]
[1752063224897,0.75552,2646.9,2646.7,1.62937354]
[1752063225100,0.75552,2646.9,2646.8,1.62937354]
[1752063225294,3.2078,2647.0,2646.8,1.62937354]
[1752063225493,0.75548,2647.0,2646.9,1.62937354]
[1752063225696,3.2078,2647.3,2646.9,3.51807354]
[1752063225997,3.77549,2648.3,2647.7,0.75524]
[1752063225998,0.75523,2647.9,2647.7,0.75524]
[1752063226296,1.8881,2647.8,2646.8,1.88876]
[1752063226491,1.88827,2647.6,2646.9,1.63397131]
[1752063226694,0.7554,2647.3,2647.0,2.38941131]
[1752063226896,0.7554,2647.2,2647.1,4.84177131]
[1752063227288,0.75539,2647.3,2647.1,5.59719131]
[1752063227488,0.75539,2647.3,2647.2,1.63397131]
[1752063227891,1.88825,2647.6,2646.8,3.96331]
[1752063227892,0.75547,2647.0,2646.8,3.96331]
[1752063228098,0.75546,2647.0,2646.9,1.63357141]
[1752063228290,0.75546,2647.0,2646.9,4.94688291]
[1752063228691,0.75546,2647.0,2646.9,1.63357141]
[1752063228893,41.55546,2647.0,2646.9,1.63357141]
[1752063229089,46.55546,2647.0,2646.9,4.96635547]
[1752063229293,46.55546,2647.0,2646.9,1.63357141]
[1752063229499,41.55546,2647.0,2646.9,1.63357141]
[1752063229793,41.55546,2647.0,2646.9,3.85572473]
[1752063230294,41.55546,2647.0,2646.9,3.85005804]
[1752063230491,41.55546,2647.0,2646.9,4.72e-06]
[1752063230690,0.75558,2646.6,2646.5,3.33278406]
[1752063231093,0.7556,2646.5,2646.3,3.33278406]
[1752063231288,3.96343,2646.4,2646.3,3.33278406]
[1752063231491,44.76343,2646.4,2646.3,3.33278406]
[1752063231700,44.76343,2646.4,2646.3,2.57187406]
[1752063232200,0.75575,2646.0,2645.9,4.51447961]
[1752063232396,0.75578,2645.9,2645.8,4.51447961]
[1752063232598,3.77797,2646.6,2645.8,4.51447961]
[1752063232599,3.2078,2647.2,2645.8,4.51447961]
[1752063232902,1.8886,2647.1,2646.3,3.2078]
[1752063233096,0.75558,2646.6,2646.3,3.96345]
[1752063233296,1.88873,2646.9,2646.3,3.2078]
[1752063233496,0.75556,2646.7,2646.4,0.75563]
[1752063234093,0.7556,2646.6,2646.3,3.2078]
[1752063234294,0.7556,2646.6,2646.3,3.96346]
[1752063234495,0.7556,2646.6,2646.3,3.2078]
[1752063234691,1.88873,2646.9,2646.3,3.2078]
[1752063234890,1.88888,2646.7,2646.3,3.2078]
[1752063235096,0.75563,2646.5,2646.3,3.2078]
[1752063235301,0.75563,2646.5,2646.3,3.96346]
[1752063235695,0.75563,2646.4,2646.3,3.96346]
[1752063235897,0.75563,2646.4,2646.3,3.2078]
[1752063236096,0.75563,2646.4,2646.3,3.96346]
[1752063236396,0.75559,2646.6,2646.5,0.75559]
[1752063236596,1.88875,2646.9,2646.3,5.65971347]
[1752063236796,0.75555,2646.7,2646.6,3.2078]
[1752063239100,1.88875,2646.9,2646.3,3.2078]
[1752063239101,0.75563,2646.4,2646.3,3.2078]
[1752063240500,1.8889,2646.7,2646.3,3.2078]
[1752063240701,0.75563,2646.4,2646.3,3.2078]
[1752063241201,0.75561,2646.5,2646.3,6.41536347]
[1752063241503,0.75563,2646.4,2646.3,5.65971347]
[1752063241697,1.39983,2646.4,2646.3,5.65971347]
[1752063242200,1.39983,2646.4,2646.3,6.41537347]
[1752063242399,0.6442,2646.4,2646.3,6.41537347]
[1752063242801,2.0011,2646.4,2646.3,11.05413964]
[1752063243198,4.51944149,2648.2,2647.4,3.2078]
[1752063243404,3.2078,2649.2,2648.1,5.29847964]
[1752063243606,0.75486,2649.1,2649.0,3.2078]
[1752063243807,2.64426,2649.1,2649.0,4.83317453]
[1752063244007,0.75486,2649.1,2649.0,4.83317453]
[1752063244505,0.75486,2649.1,2649.0,5.34662811]
[1752063245001,0.75482,2649.3,2649.1,0.75483]
[1752063245201,0.75482,2649.3,2649.2,2.60413322]
[1752063245407,0.75476,2649.5,2649.2,5.07952715]
[1752063245608,1.8894,2649.7,2649.4,3.2078]
[1752063245905,0.75472,2649.6,2649.5,0.51345358]
[1752063246301,0.75471,2649.7,2649.5,2.60413322]
[1752063246601,1.3598,2649.6,2649.5,2.09067964]
[1752063246803,2.11452,2649.6,2649.5,0.5541682]
[1752063248507,0.75478,2649.4,2649.3,0.00566669]
[1752063248705,2.64418,2649.4,2649.3,0.00566669]
[1752063249597,1.88702,2649.3,2648.7,3.2078]
[1752063249904,3.1388,2649.2,2648.7,3.2078]
[1752063250102,3.1388,2649.2,2649.0,3.2078]
[1752063250600,1.2494,2649.2,2649.0,3.2078]
[1752063250906,1.2494,2649.2,2649.1,0.75486]
[1752063253502,1.2494,2649.2,2649.0,3.2078]
[1752063253702,0.75486,2649.1,2649.0,3.2078]
[1752063253899,4.46582366,2651.9,2651.0,3.2078]
[1752063254105,5.09294,2652.0,2651.3,3.2078]
[1752063254304,0.75418,2651.5,2651.4,3.2078]
[1752063254706,1.8894,2651.5,2651.4,3.2078]
[1752063254901,0.75411,2651.8,2651.4,3.2078]
[1752063255103,56.30831997,2652.3,2651.4,3.2078]
[1752063255304,56.30831997,2652.3,2651.6,0.75413]
[1752063255305,1.8894,2651.8,2651.6,0.75413]
[1752063255506,1.8894,2651.8,2651.7,3.2078]
[1752063255806,0.75407,2651.9,2651.7,3.2078]
[1752063256009,1.8894,2651.8,2651.7,3.2078]
[1752063256206,1.8894,2651.8,2651.4,3.2078]
[1752063256411,1.8894,2651.6,2651.4,3.2078]
[1752063256902,0.75416,2651.6,2651.4,3.2078]
[1752063257109,0.75418,2651.5,2651.4,3.2078]
[1752063257412,3.2078,2652.1,2651.4,3.2078]
[1752063257707,0.75418,2651.5,2651.4,3.2078]
[1752063258305,0.75417,2651.6,2651.4,3.2078]
[1752063258509,2.64357,2651.6,2651.4,3.2078]
[1752063258709,0.75418,2651.5,2651.4,3.2078]
[1752063259404,0.75426,2651.3,2651.1,3.2078]
[1752063260004,0.75426,2651.2,2651.1,3.2078]
[1752063260198,0.75438,2650.8,2650.7,3.2078]
[1752063260403,5.85158,2650.8,2650.7,1e-08]
[1752063260607,0.75451,2650.4,2649.9,0.75462]
[1752063260910,10.0972,2650.8,2649.9,0.75462]
[1752063260911,1.8894,2650.2,2649.9,0.75462]
[1752063261105,1.8894,2650.2,2649.8,3.2078]
[1752063261408,0.75441,2650.7,2649.8,3.2078]
[1752063261606,1.8894,2650.2,2649.8,3.2078]
[1752063261803,27.30010734,2656.6,2650.6,1.88609]
[1752063261804,3.39311997,2652.3,2650.6,1.88609]
[1752063262004,0.75409,2651.8,2651.5,3.2078]
[1752063262201,0.75413,2651.7,2651.5,3.2078]
[1752063262603,3.2078,2652.2,2651.5,3.2078]
[1752063262808,0.75421,2651.5,2651.2,3.2078]
[1752063263104,3.2078,2651.9,2651.2,3.2078]
[1752063263305,0.75424,2651.3,2651.2,3.2078]
[1752063264407,0.75423,2651.4,2651.2,3.2078]
[1752063265008,42.68509,2652.1,2651.2,3.2078]
[1752063265009,0.75424,2651.3,2651.2,3.2078]
[1752063265413,0.75424,2651.3,2650.5,2.45006104]
[1752063265414,0.75432,2651.0,2650.9,3.2078]
[1752063266516,0.75432,2651.0,2650.0,0.7271]
[1752063266517,0.75441,2650.7,2650.6,3.2078]
[1752063267216,0.75451,2650.4,2650.3,3.2078]
[1752063268712,0.75444,2650.6,2650.3,3.2078]
[1752063268915,0.75446,2650.5,2650.4,1.3598]
[1752063269718,0.75449,2650.4,2650.3,3.2078]
[1752063270918,0.18531997,2652.3,2650.6,3.2078]
[1752063271122,0.18531997,2652.3,2652.2,3.2078]
[1752063271123,0.93926997,2652.3,2652.2,3.2078]
[1752063272216,0.75398,2652.2,2652.1,3.2078]
[1752063272519,0.93928997,2652.3,2652.1,3.2078]
[1752063272725,0.18531997,2652.3,2652.1,3.2078]
[1752063272925,0.93927997,2652.3,2652.1,3.2078]
[1752063274118,0.75398,2652.2,2652.1,3.2078]
[1752063274821,0.75408,2651.9,2651.8,3.2078]
[1752063275022,0.75408,2651.9,2651.8,5.48758898]
[1752063275824,0.75408,2651.9,2651.8,4.96804328]
[1752063276025,0.18531997,2652.3,2651.8,4.96804328]
[1752063276229,0.75402,2652.1,2651.9,1.76024328]
[1752063276430,0.75401,2652.1,2651.9,1.36]
[1752063276630,0.75404,2652.0,2651.9,1.36]
[1752063276827,0.75404,2652.0,2651.9,3.10572649]
[1752063277030,0.75404,2652.0,2651.9,3.60487548]
[1752063277230,0.75404,2652.0,2651.9,2.24487548]
[1752063277430,0.75404,2652.0,2651.9,2.24484459]
[1752063277730,0.75404,2652.0,2651.9,5.45264459]
[1752063278123,5.75404,2652.0,2651.9,0.4991181]
[1752063278732,0.75404,2652.0,2651.9,0.4991181]
[1752063278932,5.75404,2652.0,2651.9,0.4991181]
[1752063279731,0.75404,2652.0,2651.9,0.4991181]
[1752063280132,0.75404,2652.0,2651.9,3.70719208]
[1752063280325,0.75404,2652.0,2651.9,0.49939208]
[1752063282332,0.75404,2652.0,2651.9,2.24786943]
[1752063282537,0.3862237,2652.0,2651.9,2.24786943]
[1752063282832,0.3862237,2652.0,2651.9,0.49939208]
[1752063283332,0.75404,2652.0,2651.9,0.8525714]
[1752063283529,0.75404,2652.0,2651.9,0.49939208]
[1752063284132,0.75404,2652.0,2651.9,0.85285751]
[1752063284332,0.75404,2652.0,2651.9,2.60455179]
[1752063285235,5.75404,2652.0,2651.9,0.49939208]
[1752063285431,0.75404,2652.0,2651.9,0.49939208]
[1752063285934,0.75412,2651.7,2651.6,3.2078]
[1752063286135,0.50889507,2651.7,2651.6,5.80585979]
[1752063286727,0.50889507,2651.7,2651.6,5.80006226]
[1752063286927,0.50889507,2651.7,2651.6,2.59220516]
[1752063287333,0.50889507,2651.7,2651.6,1.38750516]
[1752063287532,0.50889507,2651.7,2651.3,3.2078]
[1752063287533,47.68533,2651.7,2651.3,4.86324705]
[1752063287735,47.68533,2651.7,2651.3,3.2078]
[1752063287736,0.75421,2651.4,2651.3,3.2078]
[1752063288332,0.75421,2651.4,2651.3,4.5197]
[1752063289339,1.88497,2652.2,2651.3,9.5197]
[1752063289643,0.75418,2651.5,2651.4,3.2078]
[1752063289836,0.75418,2651.5,2651.4,4.569]